Workbook

Sheet Sheet1
A1: 沿河土家族自治县公安局2024年公开招聘警务辅助人员成绩公示表
A2: 序号 | B2: 岗位代码 | C2: 岗位名称 | D2: 考号 | E2: 笔试成绩 | F2: 笔试折算分 | G2: 面试成绩 | H2: 面试折算分 | I2: 体能成绩 | J2: 体能折算分 | K2: 总成绩 | L2: 是否进入体检
A3: 1 | B3: 01 | C3: 局机关 | D3: 20240049 | E3: 75 | F3: =E3*0.4 -> 30.00 | G3: 84.8 | H3: =G3*0.4 -> 33.92 | I3: 65 | J3: =I3*0.2 -> 13.00 | K3: =F3+H3+J3 -> 76.92 | L3: 是
A4: 2 | B4: 01 | C4: 局机关 | D4: 20240057 | E4: 72 | F4: =E4*0.4 -> 28.80 | G4: 89 | H4: =G4*0.4 -> 35.60 | I4: 59 | J4: =I4*0.2 -> 11.80 | K4: =F4+H4+J4 -> 76.20 | L4: 是
A5: 3 | B5: 01 | C5: 局机关 | D5: 20240066 | E5: 68 | F5: 27.20 | G5: 81.4 | H5: 32.56 | I5: 65 | J5: 13.00 | K5: 72.76 | L5: 是
A6: 4 | B6: 01 | C6: 局机关 | D6: 20240036 | E6: 67 | F6: 26.80 | G6: 84.6 | H6: 33.84 | I6: 56 | J6: 11.20 | K6: 71.84 | L6: 是
A7: 5 | B7: 01 | C7: 局机关 | D7: 20240071 | E7: 64 | F7: 25.60 | G7: 93.4 | H7: 37.36 | I7: 37 | J7: 7.40 | K7: 70.36 | L7: 否
A8: 6 | B8: 01 | C8: 局机关 | D8: 20240013 | E8: 61 | F8: 24.40 | G8: 83.2 | H8: 33.28 | I8: 0 | J8: 0.00 | K8: 57.68 | L8: 否
A9: 7 | B9: 01 | C9: 局机关 | D9: 20240038 | E9: 63 | F9: 25.20 | G9: 79.2 | H9: 31.68 | I9: 0 | J9: 0.00 | K9: 56.88 | L9: 否
A10: 8 | B10: 01 | C10: 局机关 | D10: 20240035 | E10: 61 | F10: =E10*0.4 -> 24.40 | G10: 79.2 | H10: =G10*0.4 -> 31.68 | I10: 0 | J10: =I10*0.2 -> 0.00 | K10: =F10+H10+J10 -> 56.08 | L10: 否
A11: 9 | B11: 02 | C11: 交警大队 | D11: 20240031 | E11: 70 | F11: 28.00 | G11: 83 | H11: 33.20 | I11: 66 | J11: 13.20 | K11: 74.40 | L11: 是
A12: 10 | B12: 02 | C12: 交警大队 | D12: 20240075 | E12: 54 | F12: 21.60 | G12: 84.8 | H12: 33.92 | I12: 49 | J12: 9.80 | K12: 65.32 | L12: 是
A13: 11 | B13: 02 | C13: 交警大队 | D13: 20240042 | E13: 46 | F13: 18.40 | G13: 84.6 | H13: 33.84 | I13: 53 | J13: 10.60 | K13: 62.84 | L13: 是
A14: 12 | B14: 02 | C14: 交警大队 | D14: 20240028 | E14: 45 | F14: 18.00 | G14: 83.6 | H14: 33.44 | I14: 40 | J14: 8.00 | K14: 59.44 | L14: 是
A15: 13 | B15: 02 | C15: 交警大队 | D15: 20240047 | E15: 57 | F15: 22.80 | G15: 86.4 | H15: 34.56 | I15: 0 | J15: 0.00 | K15: 57.36 | L15: 是
A16: 14 | B16: 02 | C16: 交警大队 | D16: 20240077 | E16: 61 | F16: 24.40 | G16: 81.4 | H16: 32.56 | I16: 0 | J16: 0.00 | K16: 56.96 | L16: 是
A17: 15 | B17: 02 | C17: 交警大队 | D17: 20240052 | E17: 54 | F17: 21.60 | G17: 83.2 | H17: 33.28 | I17: 0 | J17: 0.00 | K17: 54.88 | L17: 是
A18: 16 | B18: 02 | C18: 交警大队 | D18: 20240012 | E18: 56 | F18: 22.40 | G18: 77 | H18: 30.80 | I18: 0 | J18: 0.00 | K18: 53.20 | L18: 是
A19: 17 | B19: 02 | C19: 交警大队 | D19: 20240007 | E19: 48 | F19: 19.20 | G19: 82.8 | H19: 33.12 | I19: 0 | J19: 0.00 | K19: 52.32 | L19: 是
A20: 18 | B20: 02 | C20: 交警大队 | D20: 20240076 | E20: 49 | F20: 19.60 | G20: 79.2 | H20: 31.68 | I20: 0 | J20: 0.00 | K20: 51.28 | L20: 是
A21: 19 | B21: 02 | C21: 交警大队 | D21: 20240061 | E21: 46 | F21: 18.40 | G21: 80.6 | H21: 32.24 | I21: 0 | J21: 0.00 | K21: 50.64 | L21: 是
A22: 20 | B22: 02 | C22: 交警大队 | D22: 20240048 | E22: 26 | F22: 10.40 | G22: 82.2 | H22: 32.88 | I22: 0 | J22: 0.00 | K22: 43.28 | L22: 否
A23: 21 | B23: 02 | C23: 交警大队 | D23: 20240068 | E23: 57 | F23: 22.80 | G23: 0 | H23: 0.00 | I23: 0 | J23: 0.00 | K23: 22.80 | L23: 否
A24: 22 | B24: 03 | C24: 特巡警大队 | D24: 20240006 | E24: 72 | F24: =E24*0.2 -> 14.40 | G24: 89.4 | H24: =G24*0.3 -> 26.82 | I24: 100 | J24: =I24*0.5 -> 50.00 | K24: 91.22 | L24: 是
A25: 23 | B25: 03 | C25: 特巡警大队 | D25: 20240082 | E25: 57 | F25: 11.40 | G25: 83.4 | H25: 25.02 | I25: 100 | J25: 50.00 | K25: 86.42 | L25: 是
A26: 24 | B26: 03 | C26: 特巡警大队 | D26: 20240050 | E26: 59 | F26: 11.80 | G26: 83.6 | H26: 25.08 | I26: 74 | J26: 37.00 | K26: 73.88 | L26: 是
A27: 25 | B27: 03 | C27: 特巡警大队 | D27: 20240083 | E27: 66 | F27: 13.20 | G27: 88 | H27: 26.40 | I27: 68 | J27: 34.00 | K27: 73.60 | L27: 是
A28: 26 | B28: 03 | C28: 特巡警大队 | D28: 20240020 | E28: 47 | F28: 9.40 | G28: 85.4 | H28: 25.62 | I28: 75 | J28: 37.50 | K28: 72.52 | L28: 是
A29: 27 | B29: 03 | C29: 特巡警大队 | D29: 20240011 | E29: 61 | F29: 12.20 | G29: 87.2 | H29: 26.16 | I29: 57 | J29: 28.50 | K29: 66.86 | L29: 是
A30: 28 | B30: 03 | C30: 特巡警大队 | D30: 20240063 | E30: 58 | F30: 11.60 | G30: 78.4 | H30: 23.52 | I30: 52 | J30: 26.00 | K30: 61.12 | L30: 是
A31: 29 | B31: 03 | C31: 特巡警大队 | D31: 20240002 | E31: 49 | F31: 9.80 | G31: 83.2 | H31: 24.96 | I31: 48 | J31: 24.00 | K31: 58.76 | L31: 是
A32: 30 | B32: 03 | C32: 特巡警大队 | D32: 20240056 | E32: 50 | F32: 10.00 | G32: 82.6 | H32: 24.78 | I32: 39 | J32: 19.50 | K32: 54.28 | L32: 是
A33: 31 | B33: 03 | C33: 特巡警大队 | D33: 20240009 | E33: 39 | F33: 7.80 | G33: 84.8 | H33: 25.44 | I33: 41 | J33: 20.50 | K33: 53.74 | L33: 是
A34: 32 | B34: 03 | C34: 特巡警大队 | D34: 20240023 | E34: 62 | F34: 12.40 | G34: 85.4 | H34: 25.62 | I34: 0 | J34: 0.00 | K34: 38.02 | L34: 否
A35: 33 | B35: 03 | C35: 特巡警大队 | D35: 20240037 | E35: 62 | F35: 12.40 | G35: 84.8 | H35: 25.44 | I35: 0 | J35: 0.00 | K35: 37.84 | L35: 否
A36: 34 | B36: 03 | C36: 特巡警大队 | D36: 20240079 | E36: 53 | F36: 10.60 | G36: 放弃 | H36: 0.00 | I36: 0 | J36: 0.00 | K36: 10.60 | L36: 否
A37: 35 | B37: 03 | C37: 特巡警大队 | D37: 20240086 | E37: 50 | F37: 10.00 | G37: 81 | H37: =G37*0.3 -> 24.30 | I37: 0 | J37: 0.00 | K37: 34.30 | L37: 否
A38: 36 | B38: 03 | C38: 特巡警大队 | D38: 20240001 | E38: 49 | F38: 9.80 | G38: 81.4 | H38: 24.42 | I38: 0 | J38: 0.00 | K38: 34.22 | L38: 否
A39: 37 | B39: 03 | C39: 特巡警大队 | D39: 20240058 | E39: 48 | F39: 9.60 | G39: 82.4 | H39: 24.72 | I39: 0 | J39: 0.00 | K39: 34.32 | L39: 否
A40: 38 | B40: 03 | C40: 特巡警大队 | D40: 20240015 | E40: 46 | F40: 9.20 | G40: 81 | H40: 24.30 | I40: 0 | J40: 0.00 | K40: 33.50 | L40: 否
A41: 39 | B41: 03 | C41: 特巡警大队 | D41: 20240032 | E41: 26 | F41: 5.20 | G41: 79.6 | H41: 23.88 | I41: 39 | J41: 19.50 | K41: 48.58 | L41: 否
A42: 40 | B42: 04 | C42: 监管场所 | D42: 20240054 | E42: 56 | F42: 11.20 | G42: 82.2 | H42: 24.66 | I42: 100 | J42: 50.00 | K42: 85.86 | L42: 是
A43: 41 | B43: 04 | C43: 监管场所 | D43: 20240030 | E43: 54 | F43: 10.80 | G43: 85.2 | H43: 25.56 | I43: 92 | J43: 46.00 | K43: 82.36 | L43: 是
A44: 42 | B44: 04 | C44: 监管场所 | D44: 20240072 | E44: 59 | F44: 11.80 | G44: 82.8 | H44: 24.84 | I44: 44 | J44: 22.00 | K44: 58.64 | L44: 是
A45: 43 | B45: 04 | C45: 监管场所 | D45: 20240026 | E45: 57 | F45: 11.40 | G45: 78.6 | H45: 23.58 | I45: 38 | J45: 19.00 | K45: 53.98 | L45: 是
A46: 44 | B46: 04 | C46: 监管场所 | D46: 20240044 | E46: 53 | F46: 10.60 | G46: 80.8 | H46: 24.24 | I46: 0 | J46: 0.00 | K46: 34.84 | L46: 否
A47: 45 | B47: 05 | C47: 团结派出所 | D47: 20240017 | E47: 61 | F47: 12.20 | G47: 86.2 | H47: 25.86 | I47: 81 | J47: 40.50 | K47: 78.56 | L47: 是
A48: 46 | B48: 05 | C48: 团结派出所 | D48: 20240059 | E48: 60 | F48: 12.00 | G48: 83.8 | H48: 25.14 | I48: 79 | J48: 39.50 | K48: 76.64 | L48: 是
A49: 47 | B49: 05 | C49: 团结派出所 | D49: 20240016 | E49: 63 | F49: 12.60 | G49: 79.6 | H49: 23.88 | I49: 0 | J49: 0.00 | K49: 36.48 | L49: 否
A50: 48 | B50: 05 | C50: 团结派出所 | D50: 20240080 | E50: 60 | F50: =E50*0.2 -> 12.00 | G50: 89 | H50: =G50*0.3 -> 26.70 | I50: 0 | J50: =I50*0.5 -> 0.00 | K50: =F50+H50+J50 -> 38.70 | L50: 否
A51: 49 | B51: 05 | C51: 团结派出所 | D51: 20240090 | E51: 59 | F51: 11.80 | G51: 74.8 | H51: 22.44 | I51: 0 | J51: 0.00 | K51: 34.24 | L51: 否
A52: 50 | B52: 06 | C52: 和平派出所 | D52: 20240088 | E52: 64 | F52: 12.80 | G52: 81.4 | H52: 24.42 | I52: 70 | J52: 35.00 | K52: 72.22 | L52: 是
A53: 51 | B53: 06 | C53: 和平派出所 | D53: 20240046 | E53: 50 | F53: 10.00 | G53: 80.8 | H53: 24.24 | I53: 40 | J53: 20.00 | K53: 54.24 | L53: 是
A54: 52 | B54: 07 | C54: 黑水派出所 | D54: 20240065 | E54: 56 | F54: 11.20 | G54: 82.4 | H54: 24.72 | I54: 0 | J54: 0.00 | K54: 35.92 | L54: 否
A55: 53 | B55: 08 | C55: 甘溪派出所 | D55: 20240089 | E55: 64 | F55: 12.80 | G55: 85.2 | H55: 25.56 | I55: 74 | J55: 37.00 | K55: 75.36 | L55: 是
A56: 54 | B56: 08 | C56: 甘溪派出所 | D56: 20240040 | E56: 58 | F56: 11.60 | G56: 83.4 | H56: 25.02 | I56: 0 | J56: 0.00 | K56: 36.62 | L56: 否
A57: 55 | B57: 10 | C57: 土地坳派出所 | D57: 20240019 | E57: 52 | F57: 10.40 | G57: 77 | H57: 23.10 | I57: 50 | J57: 25.00 | K57: 58.50 | L57: 是
A58: 56 | B58: 10 | C58: 土地坳派出所 | D58: 20240041 | E58: 54 | F58: 10.80 | G58: 85 | H58: 25.50 | I58: 0 | J58: 0.00 | K58: 36.30 | L58: 否
A59: 57 | B59: 11 | C59: 新景派出所 | D59: 20240010 | E59: 57 | F59: 11.40 | G59: 82.6 | H59: 24.78 | I59: 92 | J59: 46.00 | K59: 82.18 | L59: 是
A60: 58 | B60: 12 | C60: 后坪派出所 | D60: 20240043 | E60: 62 | F60: 12.40 | G60: 81 | H60: 24.30 | I60: 59 | J60: 29.50 | K60: 66.20 | L60: 是
